Workbook

Sheet Kalkulator
L1: Dla Projektanta:
B2: Projekt | C2: Projekt rewizja 1.2 | I2: Projektant: Chodor-Projekt www.chodor-projekt.net | L2: Wprowadzaj dane tylko do niebieskich komórek
B3: Klient | C3: Pracownia Projektowa Chodor-Projekt | I3: Opracował | J3: Data | K3: Strona | L3: Czerwone komunikaty niżej wskazują na błędy danych.
B4: Lokalizacja | C4: Kielce/Warszawa | I4: LCH | J4: =TODAY() -> 2018-04-02 | K4: 25 | L4: Pomarańczowe komunikaty są uwagami
B5: ZGINANIE Z SIŁĄ OSIOWĄ wg PN-EN 1992 nieliniowy model betonu i stali | I5: Sprawdził | J5: Rewizja | K5: Zlecenie | L5: Wymogi konstrukcyjne (beton, stal, otulenie):
B6: Plik CHP Ż01 v.1.2.xls' © 2017-2018 Chodor-Projekt na podstawie RCC12 © 1999 BCA for RCC | I6: MK | J6: - | K6: ChP-1 | L6: =IF(OR(f_ck>99,f_ck<25),"Beton niekonstrukcyjny fcu<25","-") -> -
L7: =IF(OR(f_yk>500,f_yk <250),"Sprawdź fy stali","-") -> -
C8: Rodzaj elementu | L8: =IF(AND( klasa<>"A", klasa<>"B",klasa<>"C"),"Uwaga: klasa plastyczności stali może być tylko A,B lub C","-") -> -
B9: MATERIAŁY | L9: =IF(c_u >65,"Możłiwe zbyt duże otulenie górne - sprawdź z warunku klasy ekspozycji","-") -> -
B10: fck | C10: 35 | D10: N/mm² | E10: gc | F10: 1.4 | L10: =IF(c_l >65,"Możłiwe zbyt duże otulenie dolne - sprawdź z warunku klasy ekspozycji","-") -> -
B11: fyk | C11: 500 | D11: N/mm² | E11: gs | F11: 1.15 | G11: Klasa plast. | H11: A | L11: =IF(OR(S_min<F_u,S_min<F_l,S_min<20),"Za mały prześwit między oprętami.","-") -> -
L12: =IF(OR(c_u<20,c_l<20,c_r<20),"Za małe otulenie zbrojenia. Sprawdź z warunku klasy ekspozycji","-") -> -
B13: PRZEKRÓJ | E13: Otulenie | F13: (do pobocznicy pręta) | L13: =IF(S_min < 50,"Maksymalna średnica kruszywa = "& ROUND(S_min-5,1) & " mm","-") -> -
B14: h | C14: 450 | D14: mm | E14: górne cu | F14: 30 | G14: mm | L14: Wymóg minimalnego stopnia zbrojenia:
B15: b | C15: 500 | D15: mm | E15: dolne cl | F15: 30 | G15: mm | L15: =IF(AND(OR(Rodzaj_elem=1,Rodzaj_elem=2),A_st < A_sminB)," Belka (płyta): zbrojenie dolne mniejsze od minimalnego Amin= "& ROUND(A_sminB,1)&" mm2","-") -> -
E16: boczne cr | F16: 30 | G16: mm | L16: =IF(AND(OR(Rodzaj_elem=1,Rodzaj_elem=2),A_sc < A_sminB)," Belka (płyta): zbrojenie górne mniejsze od minimalnego Amin= "& ROUND(A_sminB,1)&" mm2","-") -> -
B17: ZBROJENIE | L17: =IF(AND(OR(Rodzaj_elem=3,Rodzaj_elem=4),A_st < A_sminS/2)," Słup ( lub ściana): zbrojenie dolne mniejsze od minimalnego Amin= "& ROUND(A_sminS/2,1)&" mm2","-") -> -
C18: Pręt Ø | D18: Liczba | E18: Pole | F18: % | G18: co (odstęp) | L18: =IF(AND(OR(Rodzaj_elem=3,Rodzaj_elem=4),A_sc < A_sminS/2)," Słup ( lub ściana): zbrojenie dolne mniejsze od minimalnego Amin= "& ROUND(A_sminS/2,1)&" mm2","-") -> -
B19: górne Øu | C19: 12 | D19: 6 | E19: =PI()/4*F_u^2*n_u -> 678.5840132 | F19: =100*E19/C$14/C$15 -> 0.3015928947 | G19: =(b-2*c_u-n_u*F_u)/(n_u-1) -> 73.6 | H19: =IF(G19<MAX(25,C19),"TOO MANY",IF(F19>2,"As' > 2%",".")) -> . | L19: Wymóg maksymalnego stopnia zbrojenia:
B20: dolne Øl | C20: 12 | D20: 2 | E20: =PI()/4*F_l^2*n_l -> 226.1946711 | F20: =100*E20/C$14/C$15 -> 0.1005309649 | G20: =(b-2*c_l-n_l*F_l)/(n_l-1) -> 416 | I20: (na drukarce domyślnej) | L20: =IF(AND( OR(Rodzaj_elem=1,Rodzaj_elem=2),A_st > A_smaxB),"Belka( lub płyta): zbrojenie dolne > maksymalne poza zakładami Amax= "& ROUND(A_smaxB,1)&" mm2","-") -> -
L21: =IF(AND( OR(Rodzaj_elem=1,Rodzaj_elem=2),A_sc > A_smaxB),"Belka( lub płyta): zbrojenie górne > maksymalne poza zakładami Amax= "& ROUND(A_smaxB,1)&" mm2","-") -> -
L22: =IF(AND(OR(Rodzaj_elem=3,Rodzaj_elem=4),(A_st+A_sc) > A_smaxS),"Słup (lub ściana) zbrojenie całkowite > maksymalne Amax= "& ROUND(A_smaxS,1)&" mm2","-") -> -
C23: =Robol!B3 -> Wykres interakcji M-N dla przekroju 450 x 500 z betonu C35 | L23: Wymóg rozstawu prętów:
L24: =IF(AND( OR(Rodzaj_elem=1,Rodzaj_elem=2), OR(A_st=0, A_sc=0), OR(S_c>S_maxB_1),S_t>S_maxB_1),"Belka( lub płyta) jednokierunkowo zbrojona: za mały rozstaw prętów górnych - Smax= "& ROUND(S_maxB_1,1)&" mm","-") -> -
L25: =IF(AND( OR(Rodzaj_elem=1,Rodzaj_elem=2), AND(A_st>0, A_sc>0), OR(S_c>S_maxB_2),S_t>S_maxB_2),"Belka( lub płyta) dwukierunkowo zbrojona: za mały rozstaw prętów górnych - Smax= "& ROUND(S_maxB_2,1)&" mm","-") -> -
L26: =IF(AND( OR(Rodzaj_elem=2,Rodzaj_elem=3), OR(S_c>S_MaxS_N1),S_t>S_MaxS_N1),"Słup( lub ściana) 1 zestaw sił: Rozstaw prętów większy od max = "& ROUND(S_MaxS_N1,1)&" mm","-") -> -
L27: =IF(AND( OR(Rodzaj_elem=2,Rodzaj_elem=3), OR(S_c>S_maxS_N2),S_t>S_maxS_N2),"Słup( lub ściana), 2 zestaw sił: Rozstaw prętów większy od max = "& ROUND(S_maxS_N2,1)&" mm","-") -> -
L28: Wymóg średnicy prętów:
L29: =IF(AND( OR(Rodzaj_elem=1,Rodzaj_elem=2), OR(A_st=0, A_sc=0), OR(S_c>S_maxB_1),S_t>S_maxB_1),"Belka( lub płyta) jednokierunkowo zbrojona: za mały rozstaw prętów górnych - Smax= "& ROUND(S_maxB_1,1)&" mm","-") -> -
B52: SIŁY PRZEKROJOWE | D52: Przypadek | E52: N | F52: My | H52: Przypadek | I52: N | J52: My
B53: obliczeniowe (SGN) | D53: 1 | E53: 1500 | F53: 320 | H53: 2 | I53: -500 | J53: 50

Sheet Oblicz (hidden)
B2: =Kalkulator!B2 -> Projekt | D2: =Kalkulator!C2 -> Projekt rewizja 1.2 | AH2: =B2 -> Projekt | AI2: =D2 -> Projekt rewizja 1.2 | BG2: z wykorzystaniem struktury arkusza
B3: =Kalkulator!B4 -> Lokalizacja | D3: =Kalkulator!C4 -> Kielce/Warszawa | AC3: =Kalkulator!I3&" "&Kalkulator!I4&" "&Kalkulator!K5&" "&Kalkulator!K6 -> Opracował LCH Zlecenie ChP-1 | AH3: =B3 -> Lokalizacja | AI3: =D3 -> Kielce/Warszawa | BF3: =AC3 -> Opracował LCH Zlecenie ChP-1
D4: =Kalkulator!B5 -> ZGINANIE Z SIŁĄ OSIOWĄ wg PN-EN 1992 nieliniowy model betonu i stali | K4: Opis algorytmu | L4: http://chodor-projekt.net/encyclopedia/nowy-algorytm-projektowania-zelbetu/ | AB4: Data | AC4: =Kalkulator!J4 -> 2018-04-02 | AI4: =D4 -> ZGINANIE Z SIŁĄ OSIOWĄ wg PN-EN 1992 nieliniowy model betonu i stali | BE4: =AB4 -> Data | BF4: =AC4 -> 2018-04-02
B6: Wytrz. obl. beton | C6: fcd= | D6: fck/γc | E6: =f_ck/g_c -> 25 | F6: N/mm² | I6: Zbrojenie ściskane ( c ) | J6: d0 = h/2= | K6: =h/2 -> 225 | L6: Zbrojenie rozciągane ( t ) | O6: Dźwignie: | R6: Model stali | Y6: Wytrz. beton rozc. | AA6: fctm/=0,30* fck 2/3 | AB6: =0.3*f_ck ^(2/3) -> 3.209962442 | AC6: N/mm² | AE6: Zbrojenie minimalne rozc.: | AG6: (dolne i/lub góne) | AM6: Zbrojenie maksymalne: | AP6: Rozstaw maksymalny | AQ6: jednokierunkowo | AR6: dwukierunkowo | AT6: Średnice minimalne | AW6: Graniczne położenia osi obojętnej x w przypadku:
B7: Wytrz. obl. stal | C7: fyd= | D7: fyk/γs | E7: =f_yk/g_s -> 434.7826087 | F7: N/mm² | I7: Asc = | J7: =A_sc -> 678.5840132 | K7: mm² | L7: Ast = | M7: =A_st -> 226.1946711 | N7: mm² | Y7: Zred. wysokość | AA7: h*= h lub 1m (h>1m) | AB7: =IF(h>1000,1000,h) -> 450 | AC7: mm | AE7: belka, płyta kruche pękanie | AG7: AsminB=max{0,26fctm/fyk;0,0013}*b*dtl | AI7: =MAX(0.26*f_ctm/f_yk,0.0013)*b* d_tl -> 345.5203572 | AJ7: mm² | AK7: belka i płyta (dolne ilub górne) | AM7: AsmaxB=0,04 *b*h | AN7: =0.04*b*h -> 9000 | AO7: mm² | AP7: SmaxB= | AQ7: =IF(h>100,MIN(250,1.2*h),120) -> 250 | AR7: 250 | AS7: mm | AT7: DminP= | AU7: =IF(N_Ed1<0,8,12) -> 12 | AV7: =IF(N_Ed2<0,8,12) -> 8
B8: Odkszt liniowe beton | C8: εc2 | D8: wg EC2 | E8: 0.002 | F8: (-) | I8: acu = cu+Øu/2 = | J8: =c_u+F_u/2 -> 36 | K8: mm | L8: atu = cu+Øu/2 = | M8: =c_u+F_u/2 -> 36 | N8: mm | O8: β1=(d0 - dcu)/(dtl - d0) | Q8: =(d_0-d_cu)/(d_tl-h/2) -> 1 | R8: współczynnik pochylenia | T8: ks=(0,05 lub0,08 lub 0,15) | W8: =IF(klasa="A",0.05,IF(klasa="B",0.08,0.15)) -> 0.05 | X8: (-) | Y8: Wsp. k | AB8: =1-(h*b)*(0.65-1)/(300^2-800^2) -> 0.8568181818 | AC8: (-) | AE8: belka rysy | AU8: dla NEd1 | | AV8: dla NEd2 | | AW8: czystego zginania (Fc=0) | AY8: xM=(Asc*dcu+Ast*dtu)/(Asc+Ast) | BB8: =(A_sc*d_cu+A_st*d_tl)/(A_sc+A_st) -> 130.5 | BC8: mm
B9: Wytrz. obl. reduk. stal | C9: fynet= | D9: fyd - fcd | E9: =f_yd-f_cd -> 409.7826087 | F9: N/mm² | I9: dcu = acu = | J9: =a_cu -> 36 | K9: mm | L9: dtu = h-atu = | M9: =h-a_tu -> 414 | N9: mm | O9: β2=(d0 - dcl)/(dtu - d0) | Q9: =(d_0-d_cl)/(d_tu-d_0) -> 1 | R9: Promień modelu | T9: Rs= | W9: 20 | Y9: Wsp. k1 (NEd1) | AB9: =IF(N_Ed1>0,1.5, 2*AB7/(3*h)) -> 1.5 | AC9: (-) | AE9: słup, ściana | AG9: AsminS=max ( 0,10*NEdmax/fyd; 0.002*b*h) | AI9: =MAX(MAX(N_Ed1,N_Ed2)*0.1/f_yd, 0.002*b*h) -> 450 | AJ9: mm² | AK9: słup i ściana (łączne) | AM9: AsmaxS=0,4 *b*h | AN9: =0.4*b*h -> 90000 | AO9: mm² | AP9: SmaxS= | AQ9: =IF(N_Ed1<0,400,300) -> 300 | AR9: =IF(N_Ed2<0,400,300) -> 400 | AS9: mm | AU9: 12 | AW9: pełnego ściskania | AY9: xC=dtu/(1-fyd/ssmax) | BB9: =d_tl/(1-f_yd/s_smax) -> 1092.688525 | BC9: mm
B10: Maks naprężenia w stali | C10: σsmax= | D10: εcu2*Es | E10: =e_cu2*E_s -> 700 | F10: N/mm² | I10: lub = acl = cu+Øl/2= | J10: =c_u+F_l/2 -> 36 | K10: mm | L10: lub = atl = cl+Øl/2= | M10: =c_l+F_l/2 -> 36 | N10: mm | O10: β3=(d0 - dcu)/(dtl - dcu) | Q10: =(d_0-d_cu)/(d_tl-d_cu) -> 0.5 | R10: Odkształcenie plastyczne | T10: εyd= | U10: fyd/Es | W10: =f_yd/E_s -> 0.002173913043 | X10: (-) | Y10: Wsp. k1 (NEd2) | AB10: =IF(N_Ed2>0,1.5, 2*AB7/(3*h)) -> 0.6666666667 | AC10: (-) | AE10: słup | AQ10: dla NEd1 | | AR10: dla NEd2 | | AW10: pełnego rozciągania | AY10: xT=min{fyd*Asc/β4 ; fyd*Ast/β3}/1000 | BB10: =-MIN(f_yd*A_sc/beta4, f_yd*A_st/beta3)/1000 -> -196.6910183 | BC10: mm
B11: Wytrz. max stal | C11: Es | D11: wg EC2 | E11: 200000 | F11: N/mm² | I11: dcl = acl = | J11: =a_cl -> 36 | K11: mm | L11: dtl = h-atl = | M11: =h-a_tl -> 414 | N11: mm | O11: β4=1-β3= | Q11: =1-Q10 -> 0.5 | R11: Odkształcenie minimalne stali | T11: εud= | U11: (2,5 lub 5,0 lub 7,5)%/γs | W11: =IF(klasa="A",2.5,IF(klasa="B",5,7.5)/g_s)/100 -> 0.025 | X11: (-) | Y11: Prześwit między pretami | AA11: smin=min{s-F}= | AB11: =MIN(Kalkulator!G19-F_u,Kalkulator!G20-F_l) -> 61.6 | AC11: mm | AW11: maksymalny | AX11: xmax=min{fymax*dtl/(fymax-fynet) ; - fymax *dtl/β1*fynet *Asc/Ast +fcd-fymax} | BB11: =MIN(s_smax*d_tl/(s_smax-f_ynet),-s_smax*d_tl/(beta1*f_ynet*A_sc/A_st + f_cd-s_smax)) -> -522.7764706 | BC11: mm
B12: Odkszt max beton | C12: εcu2 | D12: wg EC2 | E12: 0.0035 | F12: (-) | K12: Nosność przekroju beton | L12: FcA= | M12: b·h·fcd | N12: =b*h*f_cd -> 5625000 | O12: N
I13: x=0 | M13: N1= | N13: 41 | O13: Δx1 = | P13: =(x_end-x_start)/N -> 7.573170707 | AX13: 0.75dtl | AY13: N2= | AZ13: 10 | BA13: Przyrost= | BB13: =(x_Nmax-x_end)/N_2 -> 78.21885246 | BH13: Nmax
B14: Wysokość strefy ściskanej | C14: x : | F14: mm | H14: -10 | I14: 1e-06 | J14: =I14+Dx_1 -> 7.573171707 | K14: 15.14634241 | L14: 22.71951312 | M14: 30.29268383 | N14: 37.86585454 | O14: 45.43902524 | P14: 53.01219595 | Q14: 60.58536666 | R14: 68.15853737 | S14: 75.73170807 | T14: 83.30487878 | U14: 90.87804949 | V14: 98.4512202 | W14: 106.0243909 | X14: 113.5975616 | Y14: 121.1707323 | Z14: 128.743903 | AA14: 136.3170737 | AB14: 143.8902444 | AC14: 151.4634151 | AD14: 159.0365859 | AE14: 166.6097566 | AF14: 174.1829273 | AG14: 181.756098 | AH14: 189.3292687 | AI14: 196.9024394 | AJ14: 204.4756101 | AK14: 212.0487808 | AL14: 219.6219515 | AM14: 227.1951222 | AN14: 234.7682929 | AO14: 242.3414636 | AP14: 249.9146343 | AQ14: 257.487805 | AR14: 265.0609758 | AS14: 272.6341465 | AT14: 280.2073172 | AU14: 287.7804879 | AV14: 295.3536586 | AW14: 302.9268293 | AX14: =0.75*d_tl -> 310.5 | AY14: =AX14+Dx_2 -> 388.7188525 | AZ14: 466.9377049 | BA14: 545.1565574 | BB14: 623.3754098 | BC14: 701.5942623 | BD14: 779.8131148 | BE14: 858.0319672 | BF14: 936.2508197 | BG14: 1014.469672 | BH14: =x_C -> 1092.688525 | BI14: x :
B15: Względna wysokość strefy | C15: x | D15: = x/h | F15: (-) | H15: =H14/h -> -0.02222222222 | I15: 2.222222222e-09 | J15: 0.01682927046 | K15: 0.0336585387 | L15: 0.05048780694 | M15: 0.06731707518 | N15: 0.08414634341 | O15: 0.1009756117 | P15: =P14/h -> 0.1178048799 | Q15: 0.1346341481 | R15: 0.1514634164 | S15: 0.1682926846 | T15: 0.1851219528 | U15: 0.2019512211 | V15: 0.2187804893 | W15: 0.2356097576 | X15: 0.2524390258 | Y15: 0.269268294 | Z15: 0.2860975623 | AA15: 0.3029268305 | AB15: 0.3197560988 | AC15: 0.336585367 | AD15: 0.3534146352 | AE15: 0.3702439035 | AF15: 0.3870731717 | AG15: 0.4039024399 | AH15: 0.4207317082 | AI15: 0.4375609764 | AJ15: 0.4543902447 | AK15: 0.4712195129 | AL15: 0.4880487811 | AM15: 0.5048780494 | AN15: =AN14/h -> 0.5217073176 | AO15: 0.5385365859 | AP15: 0.5553658541 | AQ15: 0.5721951223 | AR15: 0.5890243906 | AS15: 0.6058536588 | AT15: 0.622682927 | AU15: 0.6395121953 | AV15: 0.6563414635 | AW15: 0.6731707318 | AX15: 0.69 | AY15: 0.8638196721 | AZ15: 1.037639344 | BA15: 1.211459016 | BB15: 1.385278689 | BC15: 1.559098361 | BD15: 1.732918033 | BE15: 1.906737705 | BF15: 2.080557377 | BG15: 2.254377049 | BH15: 2.428196721 | BI15: x
B16: Siła beton (jeśli x<h) | C16: Fc< | D16: = FcA· 17/21·x | F16: N | I16: =17/21*I15*F_cA -> 0.01011904762 | J16: 76633.28513 | K16: 153266.5601 | L16: 229899.8352 | M16: 306533.1102 | N16: 383166.3852 | O16: 459799.6602 | P16: =17/21*P15*F_cA -> 536432.9352 | Q16: 613066.2102 | R16: 689699.4852 | S16: 766332.7603 | T16: 842966.0353 | U16: 919599.3103 | V16: 996232.5853 | W16: 1072865.86 | X16: 1149499.135 | Y16: 1226132.41 | Z16: 1302765.685 | AA16: 1379398.96 | AB16: 1456032.235 | AC16: 1532665.51 | AD16: 1609298.785 | AE16: 1685932.06 | AF16: 1762565.335 | AG16: 1839198.61 | AH16: 1915831.885 | AI16: 1992465.16 | AJ16: 2069098.436 | AK16: 2145731.711 | AL16: 2222364.986 | AM16: 2298998.261 | AN16: 2375631.536 | AO16: =17/21*AO15*F_cA -> 2452264.811 | AP16: 2528898.086 | AQ16: 2605531.361 | AR16: 2682164.636 | AS16: 2758797.911 | AT16: 2835431.186 | AU16: 2912064.461 | AV16: 2988697.736 | AW16: 3065331.011 | AX16: 3141964.286 | AY16: 3933464.578 | AZ16: 4724964.871 | BA16: 5516465.164 | BB16: 6307965.457 | BC16: 7099465.749 | BD16: 7890966.042 | BE16: 8682466.335 | BF16: 9473966.628 | BG16: 10265466.92 | BH16: 11056967.21 | BI16: Fc<
B17: Siła beton nieliniowa | C17: FN | D17: = 7/192(1- x2)/x2*FcA | H17: =IF(H15>1,7/192*(1/H15-1)^2,0)*F_cA -> 0 | I17: 0 | J17: 0 | K17: 0 | L17: 0 | M17: 0 | N17: 0 | O17: 0 | P17: 0 | Q17: 0 | R17: 0 | S17: 0 | T17: 0 | U17: 0 | V17: 0 | W17: 0 | X17: 0 | Y17: 0 | Z17: 0 | AA17: 0 | AB17: 0 | AC17: 0 | AD17: 0 | AE17: 0 | AF17: 0 | AG17: 0 | AH17: 0 | AI17: 0 | AJ17: 0 | AK17: 0 | AL17: 0 | AM17: 0 | AN17: =IF(AN15>1,7/192*(1/AN15-1)^2,0)*F_cA -> 0 | AO17: 0 | AP17: 0 | AQ17: 0 | AR17: 0 | AS17: 0 | AT17: 0 | AU17: 0 | AV17: 0 | AW17: 0 | AX17: 0 | AY17: 0 | AZ17: 269.8426383 | BA17: 6248.191051 | BB17: 15863.35364 | BC17: 26372.34485 | BD17: 36683.78256 | BE17: 46376.80006 | BF17: 55316.61662 | BG17: 63492.50003 | BH17: 70945.9592 | BI17: FN
B18: Siła beton nadmiar (jeśli x>h) | C18: ΔFc | D18: = FN·(21+20·x) | F18: N | I18: =I17*(21+20*I15) -> 0 | J18: =J17*(21+20*J15) -> 0 | K18: =K17*(21+20*K15) -> 0 | L18: 0 | M18: 0 | N18: 0 | O18: 0 | P18: 0 | Q18: 0 | R18: 0 | S18: 0 | T18: 0 | U18: 0 | V18: 0 | W18: 0 | X18: 0 | Y18: 0 | Z18: 0 | AA18: 0 | AB18: 0 | AC18: 0 | AD18: 0 | AE18: 0 | AF18: 0 | AG18: 0 | AH18: 0 | AI18: 0 | AJ18: 0 | AK18: 0 | AL18: 0 | AM18: 0 | AN18: 0 | AO18: 0 | AP18: 0 | AQ18: 0 | AR18: 0 | AS18: 0 | AT18: 0 | AU18: 0 | AV18: 0 | AW18: 0 | AX18: 0 | AY18: 0 | AZ18: 11266.68217 | BA18: 282600.5597 | BB18: 772633.7409 | BC18: 1376160.834 | BD18: 2041759.2 | BE18: 2742480.668 | BF18: 3463436.845 | BG18: 4196063.198 | BH18: 4935280.054 | BI18: ΔFc
B19: Siła beton | C19: Fc | D19: = Fc< - ΔFc | F19: N | I19: =I16-I18 -> 0.01011904762 | J19: =J16-J18 -> 76633.28513 | K19: 153266.5601 | L19: 229899.8352 | M19: 306533.1102 | N19: 383166.3852 | O19: 459799.6602 | P19: 536432.9352 | Q19: 613066.2102 | R19: 689699.4852 | S19: 766332.7603 | T19: 842966.0353 | U19: 919599.3103 | V19: 996232.5853 | W19: 1072865.86 | X19: 1149499.135 | Y19: 1226132.41 | Z19: 1302765.685 | AA19: 1379398.96 | AB19: 1456032.235 | AC19: 1532665.51 | AD19: 1609298.785 | AE19: 1685932.06 | AF19: 1762565.335 | AG19: 1839198.61 | AH19: 1915831.885 | AI19: 1992465.16 | AJ19: 2069098.436 | AK19: 2145731.711 | AL19: 2222364.986 | AM19: 2298998.261 | AN19: 2375631.536 | AO19: 2452264.811 | AP19: 2528898.086 | AQ19: 2605531.361 | AR19: 2682164.636 | AS19: 2758797.911 | AT19: 2835431.186 | AU19: 2912064.461 | AV19: 2988697.736 | AW19: 3065331.011 | AX19: 3141964.286 | AY19: 3933464.578 | AZ19: 4713698.189 | BA19: 5233864.604 | BB19: 5535331.716 | BC19: 5723304.915 | BD19: 5849206.842 | BE19: 5939985.667 | BF19: 6010529.783 | BG19: 6069403.722 | BH19: 6121687.159 | BI19: Fc
B20: Odkszt stal ścisk, góra | C20: εsc | D20: = sgn(x)·εcu2·(x-dcu)/x | F20: (-) | H20: =SIGN(H14)*SIGN(1-d_cu/H14)*IF(ABS(e_cu2*(1-d_cu/H14))>e_ud,e_ud,(e_cu2*(1-d_cu/H14))) -> -0.0161 | I20: -0.025 | J20: 0.01313767902 | K20: 0.004818840057 | L20: 0.002045893494 | M20: 0.0006594201659 | N20: 0.0001724638453 | O20: 0.0007270531922 | P20: 0.001123188443 | Q20: 0.001420289883 | R20: 0.001651368781 | S20: 0.001836231901 | T20: 0.001987483544 | U20: 0.002113526581 | V20: 0.002220178381 | W20: 0.00231159421 | X20: 0.002390821262 | Y20: 0.002460144933 | Z20: 0.002521312877 | AA20: 0.002575684384 | AB20: 0.002624332574 | AC20: 0.002668115945 | AD20: 0.002707729471 | AE20: 0.002743741768 | AF20: 0.00277662256 | AG20: 0.002806763287 | AH20: 0.002834492755 | AI20: 0.002860089187 | AJ20: 0.002883789588 | AK20: 0.002905797102 | AL20: 0.002926286857 | AM20: 0.002945410629 | AN20: =SIGN(AN14)*SIGN(1-d_cu/AN14)*IF(ABS(e_cu2*(1-d_cu/AN14))>e_ud,e_ud,(e_cu2*(1-d_cu/AN14))) -> 0.002963300608 | AO20: 0.002980072464 | AP20: 0.002995827844 | AQ20: 0.003010656437 | AR20: 0.003024637681 | AS20: 0.00303784219 | AT20: 0.003050332942 | AU20: 0.003062166285 | AV20: 0.003073392791 | AW20: 0.003084057971 | AX20: 0.003094202899 | AY20: 0.003175858273 | AZ20: 0.003230156724 | BA20: 0.003268873733 | BB20: 0.003297874607 | BC20: 0.003320409022 | BD20: 0.003338422825 | BE20: 0.003353152324 | BF20: 0.003365420679 | BG20: 0.003375797174 | BH20: 0.003384688091 | BI20: εsc
B21: Wartość bezwględna εsc | C21: | εsc | | F21: N/mm² | H21: =ABS(H20) -> 0.0161 | I21: =ABS(I20) -> 0.025 | J21: 0.01313767902 | K21: 0.004818840057 | L21: 0.002045893494 | M21: 0.0006594201659 | N21: 0.0001724638453 | O21: 0.0007270531922 | P21: 0.001123188443 | Q21: 0.001420289883 | R21: 0.001651368781 | S21: 0.001836231901 | T21: 0.001987483544 | U21: 0.002113526581 | V21: 0.002220178381 | W21: 0.00231159421 | X21: 0.002390821262 | Y21: 0.002460144933 | Z21: 0.002521312877 | AA21: 0.002575684384 | AB21: 0.002624332574 | AC21: 0.002668115945 | AD21: 0.002707729471 | AE21: 0.002743741768 | AF21: 0.00277662256 | AG21: 0.002806763287 | AH21: 0.002834492755 | AI21: 0.002860089187 | AJ21: 0.002883789588 | AK21: 0.002905797102 | AL21: 0.002926286857 | AM21: 0.002945410629 | AN21: 0.002963300608 | AO21: 0.002980072464 | AP21: 0.002995827844 | AQ21: 0.003010656437 | AR21: 0.003024637681 | AS21: 0.00303784219 | AT21: 0.003050332942 | AU21: 0.003062166285 | AV21: 0.003073392791 | AW21: 0.003084057971 | AX21: 0.003094202899 | AY21: 0.003175858273 | AZ21: 0.003230156724 | BA21: 0.003268873733 | BB21: 0.003297874607 | BC21: 0.003320409022 | BD21: 0.003338422825 | BE21: 0.003353152324 | BF21: 0.003365420679 | BG21: 0.003375797174 | BH21: 0.003384688091 | BI21: | εsc |
B22: Moduł stali ścisk. | C22: Esc | D22: = [ks+(1-ks)/(1+(εsc/εyd)Rs)(1/Rs)]*Es | F22: N/mm² | H22: =(k_s+(1-k_s)/(1+(H20/e_yd)^R_s)^(1/R_s))*E_s -> 35654.87443 | I22: =(k_s+(1-k_s)/(1+(I20/e_yd)^R_s)^(1/R_s))*E_s -> 26521.73913 | J22: 41439.608 | K22: 95714.29448 | L22: 197545.1805 | M22: 200000 | N22: 200000 | O22: 200000 | P22: 199999.9825 | Q22: 199998.0929 | R22: 199961.2002 | S22: 199681.0309 | T22: 198543.123 | U22: 195767.1213 | V22: 191405.8446 | W22: 186403.4795 | X22: 181564.7334 | Y22: 177216.2089 | Z22: 173409.5128 | AA22: 170097.4594 | AB22: 167209.9498 | AC22: 164679.6005 | AD22: 162448.5539 | AE22: 160469.0221 | AF22: 158702.0223 | AG22: 157115.7982 | AH22: 155684.3884 | AI22: 154386.4464 | AJ22: 153204.3031 | AK22: 152123.2316 | AL22: 151130.8729 | AM22: 150216.7867 | AN22: =(k_s+(1-k_s)/(1+(AN20/e_yd)^R_s)^(1/R_s))*E_s -> 149372.0977 | AO22: 148589.2161 | AP22: 147861.6147 | AQ22: 147183.6508 | AR22: 146550.4216 | AS22: 145957.648 | AT22: 145401.5784 | AU22: 144878.9102 | AV22: 144386.7247 | AW22: 143922.4334 | AX22: 143483.7322 | AY22: 140053.9608 | AZ22: 137868.7105 | BA22: 136354.7018 | BB22: 135243.8532 | BC22: 134394.0584 | BD22: 133722.9731 | BE22: 133179.5888 | BF22: 132730.6224 | BG22: 132353.4326 | BH22: 132032.081 | BI22: Esc
B23: Napr. beton obok stali ścisk | C23: σcs | D23: = fcd*(1- jeśli εsc<εc2 [1 -(1-εsc/εc2)2]) | F23: N/mm² | H23: =f_cd*(1- IF(H21<e_c2,(1-H21/e_c2)^2,0)) -> 25 | I23: 25 | J23: 25 | K23: 25 | L23: 25 | M23: 13.76778568 | N23: 4.12569752 | O23: 14.87254015 | P23: 20.19500933 | Q23: 22.89960112 | R23: 24.24035171 | S23: 24.83237506 | T23: 24.99902086 | U23: 25 | V23: 25 | W23: 25 | X23: 25 | Y23: 25 | Z23: 25 | AA23: 25 | AB23: 25 | AC23: 25 | AD23: 25 | AE23: 25 | AF23: 25 | AG23: 25 | AH23: 25 | AI23: 25 | AJ23: 25 | AK23: 25 | AL23: 25 | AM23: 25 | AN23: =f_cd*(1- IF(AN21<e_c2,(1-AN21/e_c2)^2,0)) -> 25 | AO23: 25 | AP23: 25 | AQ23: 25 | AR23: 25 | AS23: 25 | AT23: 25 | AU23: 25 | AV23: 25 | AW23: 25 | AX23: 25 | AY23: 25 | AZ23: 25 | BA23: 25 | BB23: 25 | BC23: 25 | BD23: 25 | BE23: 25 | BF23: 25 | BG23: 25 | BH23: 25 | BI23: σcs
B24: Napr. stal ścisk. | C24: σsc | D24: = Esc*εsc - σcs | F24: N/mm² | H24: =H22*H20+IF(H20>0,-H23,0) -> -574.0434783 | I24: =I22*I20+IF(I20>0,-I23,0) -> -663.0434783 | J24: 519.4202684 | K24: 436.2318763 | L24: 379.1563994 | M24: 118.1162475 | N24: 30.36707154 | O24: 130.5380983 | P24: 204.4426597 | Q24: 261.1556668 | R24: 305.9693317 | S24: 341.8283039 | T24: 369.602169 | U24: 388.7590145 | V24: 399.9551182 | W24: 405.8892041 | X24: 409.088825 | Y24: 410.9775584 | Z24: 412.2196377 | AA24: 413.1173699 | AB24: 413.8145179 | AC24: 414.384268 | AD24: 414.8667368 | AE24: 415.2855584 | AF24: 415.6556156 | AG24: 415.9868542 | AH24: 416.286271 | AI24: 416.5590061 | AJ24: 416.8089742 | AK24: 417.0392456 | AL24: 417.2522871 | AM24: 417.4501201 | AN24: 417.6344281 | AO24: 417.8066315 | AP24: 417.9679425 | AQ24: 418.1194056 | AR24: 418.2619275 | AS24: 418.3963012 | AT24: 418.5232244 | AU24: 418.6433142 | AV24: 418.7571189 | AW24: 418.865128 | AX24: 418.9677801 | AY24: 419.79153 | AZ24: 420.3375422 | BA24: 420.726303 | BB24: 421.017269 | BC24: 421.243244 | BD24: 421.4238255 | BE24: 421.5714476 | BF24: 421.6943815 | BG24: 421.7983437 | BH24: 421.887412 | BI24: σsc
B25: Siła stal ścisk | C25: Fsc | D25: = σsc·Asc | F25: N | H25: =H24*A_sc -> -389536.7272 | I25: -449930.7044 | J25: 352470.2903 | K25: 296019.9773 | L25: 257289.4712 | M25: 80151.79726 | N25: 20606.60927 | O25: 88581.06661 | P25: 138731.5205 | Q25: 177216.0604 | R25: 207625.897 | S25: 231959.2223 | T25: 250806.1231 | U25: 263805.6522 | V25: 271403.1492 | W25: 275429.925 | X25: 277601.1366 | Y25: 278882.8009 | Z25: 279725.6561 | AA25: 280334.8428 | AB25: 280807.9163 | AC25: 281194.5395 | AD25: 281521.9352 | AE25: 281806.1408 | AF25: 282057.2557 | AG25: 282282.0289 | AH25: 282485.2084 | AI25: 282670.2821 | AJ25: 282839.9064 | AK25: 282996.1649 | AL25: 283140.7315 | AM25: 283274.9778 | AN25: =AN24*A_sc -> 283400.0463 | AO25: 283516.9007 | AP25: 283626.3638 | AQ25: 283729.1442 | AR25: 283825.8573 | AS25: 283917.0412 | AT25: 284003.1692 | AU25: 284084.6602 | AV25: 284161.8863 | AW25: 284235.1796 | AX25: 284304.8376 | AY25: 284863.8211 | AZ25: 285234.3363 | BA25: 285498.1431 | BB25: 285695.588 | BC25: 285848.9311 | BD25: 285971.4708 | BE25: 286071.6448 | BF25: 286155.0657 | BG25: 286225.6128 | BH25: 286286.0531 | BI25: Fsc
B26: Odkszt stal rozciąg., dół | C26: εst | D26: = εcu2·(dtl-x)/x | F26: (-) | H26: =SIGN(e_cu2*(d_tl/H14-1))*IF(ABS(e_cu2*(d_tl/H14-1))>e_ud, e_ud, ABS(e_cu2*(d_tl/H14-1))) -> -0.025 | I26: =SIGN(e_cu2*(d_tl/I14-1))*IF(ABS(e_cu2*(d_tl/I14-1))>e_ud, e_ud, ABS(e_cu2*(d_tl/I14-1))) -> 0.025 | J26: 0.025 | K26: 0.025 | L26: 0.025 | M26: 0.025 | N26: 0.025 | O26: 0.025 | P26: 0.02383333291 | Q26: 0.02041666635 | R26: 0.01775925902 | S26: 0.01563333314 | T26: 0.01389393924 | U26: 0.01244444432 | V26: 0.01121794862 | W26: 0.01016666658 | X26: 0.009255555484 | Y26: 0.008458333273 | Z26: 0.00775490191 | AA26: 0.007129629586 | AB26: 0.006570175401 | AC26: 0.006066666634 | AD26: 0.005611111083 | AE26: 0.005196969673 | AF26: 0.004818840559 | AG26: 0.004472222204 | AH26: 0.004153333318 | AI26: 0.003858974345 | AJ26: 0.003586419741 | AK26: 0.003333333323 | AL26: 0.003097701141 | AM26: 0.00287777777 | AN26: =SIGN(e_cu2*(d_tl/AN14-1))*IF(ABS(e_cu2*(d_tl/AN14-1))>e_ud, e_ud, ABS(e_cu2*(d_tl/AN14-1))) -> 0.002672043004 | AO26: 0.002479166661 | AP26: 0.002297979793 | AQ26: 0.002127450977 | AR26: 0.001966666664 | AS26: 0.001814814812 | AT26: 0.001671171169 | AU26: 0.001535087718 | AV26: 0.001405982905 | AW26: 0.001283333333 | AX26: 0.001166666667 | AY26: 0.000227629856 | AZ26: -0.0003968023256 | BA26: -0.0008420479303 | BB26: -0.001175557975 | BC26: -0.001434703748 | BD26: -0.001641862489 | BE26: -0.00181125173 | BF26: -0.001952337804 | BG26: -0.002071667503 | BH26: -0.002173913043 | BI26: εst
B27: Moduł stali rozciąg. | C27: Est | D27: = [ks+(1-ks)/(1+(εst/εyd)Rs)(1/Rs)]*Es | F27: N/mm² | H27: =(k_s+(1-k_s)/(1+(H26/e_yd)^R_s)^(1/R_s))*E_s -> 26521.73913 | I27: 26521.73913 | J27: 26521.73913 | K27: 26521.73913 | L27: 26521.73913 | M27: 26521.73913 | N27: 26521.73913 | O27: 26521.73913 | P27: 27330.4959 | Q27: 30230.70129 | R27: 33257.92297 | S27: 36420.6919 | T27: 39728.32046 | U27: 43190.99412 | V27: 46819.87611 | W27: 50627.22771 | X27: 54626.54661 | Y27: 58832.72684 | Z27: 63262.24407 | AA27: 67933.37133 | AB27: 72866.43096 | AC27: 78084.09018 | AD27: 83611.70934 | AE27: 89477.7541 | AF27: 95714.28556 | AG27: 102357.5458 | AH27: 109448.6591 | AI27: 117034.4675 | AJ27: 125168.4917 | AK27: 133911.8435 | AL27: 143333.1165 | AM27: 153502.3937 | AN27: =(k_s+(1-k_s)/(1+(AN26/e_yd)^R_s)^(1/R_s))*E_s -> 164455.9319 | AO27: 176025.811 | AP27: 187200.2603 | AQ27: 195306.4507 | AR27: 198802.2425 | AS27: 199746.8178 | AT27: 199950.7828 | AU27: 199990.9775 | AV27: 199998.4424 | AW27: 199999.749 | AX27: 199999.9627 | AY27: 200000 | AZ27: 200000 | BA27: 199999.9999 | BB27: 199999.9566 | BC27: 199997.6662 | BD27: 199965.4231 | BE27: 199756.4459 | BF27: 198956.1493 | BG27: 196954.182 | BH27: 193527.9025 | BI27: Est
B28: Napr. stal rozc., dół | C28: σst | D28: = Est*εst | F28: N/mm² | H28: =H27*H26 -> -663.0434783 | I28: =I27*I26 -> 663.0434783 | J28: 663.0434783 | K28: 663.0434783 | L28: 663.0434783 | M28: 663.0434783 | N28: 663.0434783 | O28: 663.0434783 | P28: 651.3768073 | Q28: 617.2101418 | R28: 590.6360684 | S28: 569.3768097 | T28: 551.9828707 | U28: 537.4879215 | V28: 525.2229644 | W28: 514.7101441 | X28: 505.5990331 | Y28: 497.626811 | Z28: 490.5924974 | AA28: 484.3397741 | AB28: 478.7452323 | AC28: 473.7101446 | AD28: 469.154589 | AE28: 465.0131744 | AF28: 461.2318813 | AG28: 457.7656891 | AH28: 454.5767622 | AI28: 451.6330077 | AJ28: 448.9067497 | AK28: 446.3728103 | AL28: 444.0031585 | AM28: 441.7457762 | AN28: 439.4333223 | AO28: 436.3973223 | AP28: 430.1824155 | AQ28: 415.5048994 | AR28: 390.977743 | AS28: 362.5034837 | AT28: 334.1519835 | AU28: 307.0036933 | AV28: 281.1943911 | AW28: 256.6663445 | AX28: 233.3332898 | AY28: 45.52597119 | AZ28: -79.36046512 | BA28: -168.409586 | BB28: -235.1115439 | BC28: -286.9374013 | BD28: -328.3157274 | BE28: -361.8092083 | BF28: -388.4296114 | BG28: -408.0235784 | BH28: -420.7128315 | BI28: σst
B29: Siła stal rozc | C29: Fst | D29: = σst·Ast | F29: N | H29: =H28*A_st -> -149976.9015 | I29: 149976.9015 | J29: 149976.9015 | K29: 149976.9015 | L29: 149976.9015 | M29: 149976.9015 | N29: 149976.9015 | O29: 149976.9015 | P29: 147337.9627 | Q29: 139609.645 | R29: 133598.7312 | S29: 128790.0002 | T29: 124855.5839 | U29: 121576.9036 | V29: 118802.6357 | W29: 116424.6917 | X29: 114363.807 | Y29: 112560.5328 | Z29: 110969.4086 | AA29: 109555.0759 | AB29: 108289.6203 | AC29: 107150.7103 | AD29: 106120.2679 | AE29: 105183.502 | AF29: 104328.1937 | AG29: 103544.1595 | AH29: 102822.8412 | AI29: 102156.9796 | AJ29: 101540.3146 | AK29: 100967.151 | AL29: 100431.1484 | AM29: 99920.54054 | AN29: =AN28*A_st -> 99397.47579 | AO29: 98710.74876 | AP29: 97304.96998 | AQ29: 93984.99404 | AR29: 88437.08196 | AS29: 81996.35625 | AT29: 75583.39799 | AU29: 69442.59941 | AV29: 63604.67281 | AW29: 58056.55936 | AX29: 52778.74673 | AY29: 10297.73208 | AZ29: -17950.9143 | BA29: -38093.35091 | BB29: -53180.97834 | BC29: -64903.71111 | BD29: -74263.26795 | BE29: -81839.31485 | BF29: -87860.70819 | BG29: -92292.75909 | BH29: -95163.00053 | BI29: Fst
B30: Moment beton (jeśli x<h) | C30: Mc< | D30: = FcA·h·(17/42·x - 33/98·x2) | F30: Nmm | I30: =F_cA*h*(17/42*I15-33/98*I15^2) -> 2.27678571 | J30: 17001080.14 | K30: 33519340.1 | L30: 49554782.16 | M30: 65107406.31 | N30: 80177212.56 | O30: 94764200.91 | P30: 108868371.3 | Q30: 122489723.9 | R30: 135628258.5 | S30: 148283975.3 | T30: 160456874.1 | U30: 172146955 | V30: 183354218 | W30: 194078663.2 | X30: 204320290.4 | Y30: 214079099.7 | Z30: 223355091.1 | AA30: 232148264.6 | AB30: 240458620.2 | AC30: 248286157.9 | AD30: 255630877.7 | AE30: 262492779.6 | AF30: 268871863.6 | AG30: 274768129.7 | AH30: 280181577.9 | AI30: 285112208.2 | AJ30: 289560020.6 | AK30: 293525015 | AL30: 297007191.6 | AM30: 300006550.3 | AN30: 302523091 | AO30: =F_cA*h*(17/42*AO15-33/98*AO15^2) -> 304556813.9 | AP30: 306107718.9 | AQ30: 307175805.9 | AR30: 307761075.1 | AS30: 307863526.3 | AT30: 307483159.7 | AU30: 306619975.1 | AV30: 305273972.7 | AW30: 303445152.3 | AX30: 301133514 | AY30: 249012001.3 | AZ30: 145385327 | BA30: -9746508.738 | BB30: -216383506 | BC30: -474525664.7 | BD30: -784172984.9 | BE30: -1145325467 | BF30: -1557983110 | BG30: -2022145915 | BH30: -2537813881 | BI30: Mc<
B31: Moment beton nadmiar (jeśli x>h) | C31: ΔMc | D31: = - FN·h·(7+8·x+9·x2) | F31: Nmm | H31: =-H17*h*(7+8*H15+9*H15^2) -> 0 | I31: 0 | J31: 0 | K31: 0 | L31: 0 | M31: 0 | N31: 0 | O31: 0 | P31: 0 | Q31: 0 | R31: 0 | S31: 0 | T31: 0 | U31: 0 | V31: 0 | W31: 0 | X31: 0 | Y31: 0 | Z31: 0 | AA31: 0 | AB31: 0 | AC31: 0 | AD31: 0 | AE31: 0 | AF31: 0 | AG31: 0 | AH31: 0 | AI31: 0 | AJ31: 0 | AK31: 0 | AL31: 0 | AM31: 0 | AN31: =-AN17*h*(7+8*AN15+9*AN15^2) -> 0 | AO31: 0 | AP31: 0 | AQ31: 0 | AR31: 0 | AS31: 0 | AT31: 0 | AU31: 0 | AV31: 0 | AW31: 0 | AX31: 0 | AY31: 0 | AZ31: -3034682.164 | BA31: -84070447.16 | BB31: -252369162 | BC31: -490721937.2 | BD31: -790560268.3 | BE31: -1147298631 | BF31: -1558342025 | BG31: -2022155598 | BH31: -2537798856 | BI31: ΔMc
B32: Moment beton | C32: Mc | D32: = Mc< - ΔMc | F32: Nmm | H32: =H30-H31 -> 0 | I32: =I30-I31 -> 2.27678571 | J32: 17001080.14 | K32: 33519340.1 | L32: 49554782.16 | M32: 65107406.31 | N32: 80177212.56 | O32: 94764200.91 | P32: 108868371.3 | Q32: 122489723.9 | R32: 135628258.5 | S32: 148283975.3 | T32: 160456874.1 | U32: 172146955 | V32: 183354218 | W32: 194078663.2 | X32: 204320290.4 | Y32: 214079099.7 | Z32: 223355091.1 | AA32: 232148264.6 | AB32: 240458620.2 | AC32: 248286157.9 | AD32: 255630877.7 | AE32: 262492779.6 | AF32: 268871863.6 | AG32: 274768129.7 | AH32: 280181577.9 | AI32: 285112208.2 | AJ32: 289560020.6 | AK32: 293525015 | AL32: 297007191.6 | AM32: 300006550.3 | AN32: 302523091 | AO32: 304556813.9 | AP32: 306107718.9 | AQ32: 307175805.9 | AR32: 307761075.1 | AS32: 307863526.3 | AT32: 307483159.7 | AU32: 306619975.1 | AV32: 305273972.7 | AW32: 303445152.3 | AX32: 301133514 | AY32: 249012001.3 | AZ32: 148420009.2 | BA32: 74323938.42 | BB32: 35985656.05 | BC32: 16196272.51 | BD32: 6387283.367 | BE32: 1973163.968 | BF32: 358915.5035 | BG32: 9683.352451 | BH32: -15024.41037 | BI32: Mc
B33: Moment stal ścisk. | C33: Msc | D33: = Fsc*(d0-acu) | E33: Nmm | F33: Nmm | H33: =H25*(d_0-a_cu) -> -73622441.44 | I33: -85036903.13 | J33: 66616884.86 | K33: 55947775.71 | L33: 48627710.05 | M33: 15148689.68 | N33: 3894649.152 | O33: 16741821.59 | P33: 26220257.37 | Q33: 33493835.42 | R33: 39241294.53 | S33: 43840293.01 | T33: 47402357.27 | U33: 49859268.27 | V33: 51295195.2 | W33: 52056255.83 | X33: 52466614.82 | Y33: 52708849.37 | Z33: 52868149 | AA33: 52983285.29 | AB33: 53072696.18 | AC33: 53145767.97 | AD33: 53207645.76 | AE33: 53261360.61 | AF33: 53308821.33 | AG33: 53351303.47 | AH33: 53389704.38 | AI33: 53424683.32 | AJ33: 53456742.32 | AK33: 53486275.17 | AL33: 53513598.25 | AM33: 53538970.81 | AN33: =AN25*(d_0-a_cu) -> 53562608.74 | AO33: 53584694.23 | AP33: 53605382.76 | AQ33: 53624808.26 | AR33: 53643087.03 | AS33: 53660320.78 | AT33: 53676598.99 | AU33: 53692000.78 | AV33: 53706596.51 | AW33: 53720448.94 | AX33: 53733614.31 | AY33: 53839262.19 | AZ33: 53909289.55 | BA33: 53959149.05 | BB33: 53996466.14 | BC33: 54025447.97 | BD33: 54048607.98 | BE33: 54067540.86 | BF33: 54083307.42 | BG33: 54096640.82 | BH33: 54108064.05 | BI33: Msc
B34: Moment stal rozc. | C34: Mst | D34: = Fst*(d0-atl) | E34: kNm | F34: Nmm | H34: =H29*(d_0-a_tl) -> -28345634.38 | I34: 28345634.38 | J34: 28345634.38 | K34: 28345634.38 | L34: 28345634.38 | M34: 28345634.38 | N34: 28345634.38 | O34: 28345634.38 | P34: 27846874.94 | Q34: 26386222.9 | R34: 25250160.2 | S34: 24341310.03 | T34: 23597705.35 | U34: 22978034.78 | V34: 22453698.14 | W34: 22004266.74 | X34: 21614759.52 | Y34: 21273940.7 | Z34: 20973218.22 | AA34: 20705909.34 | AB34: 20466738.24 | AC34: 20251484.25 | AD34: 20056730.64 | AE34: 19879681.88 | AF34: 19718028.61 | AG34: 19569846.14 | AH34: 19433516.99 | AI34: 19307669.15 | AJ34: 19191119.46 | AK34: 19082791.54 | AL34: 18981487.05 | AM34: 18884982.16 | AN34: =AN29*(d_0-a_tl) -> 18786122.93 | AO34: 18656331.52 | AP34: 18390639.33 | AQ34: 17763163.87 | AR34: 16714608.49 | AS34: 15497311.33 | AT34: 14285262.22 | AU34: 13124651.29 | AV34: 12021283.16 | AW34: 10972689.72 | AX34: 9975183.133 | AY34: 1946271.363 | AZ34: -3392722.803 | BA34: -7199643.322 | BB34: -10051204.91 | BC34: -12266801.4 | BD34: -14035757.64 | BE34: -15467630.51 | BF34: -16605673.85 | BG34: -17443331.47 | BH34: -17985807.1 | BI34: Mst
B35: Nośność siła osiowa | C35: NRd=Fc + Fsc - Fst | F35: kN | G35: 0 | H35: =(H19+H25-H29)/1000 -> -239.5598258 | I35: -599.9075957 | J35: 279.1266739 | K35: 299.309636 | L35: 337.2124049 | M35: 236.708006 | N35: 253.796093 | O35: 398.4038253 | P35: 527.826493 | Q35: 650.6726257 | R35: 763.726651 | S35: 869.5019824 | T35: 968.9165745 | U35: 1061.828059 | V35: 1148.833099 | W35: 1231.871094 | X35: 1312.736465 | Y35: 1392.454678 | Z35: 1471.521933 | AA35: 1550.178727 | AB35: 1628.550531 | AC35: 1706.70934 | AD35: 1784.700453 | AE35: 1862.554699 | AF35: 1940.294397 | AG35: 2017.93648 | AH35: 2095.494253 | AI35: 2172.978463 | AJ35: 2250.398027 | AK35: 2327.760724 | AL35: 2405.074569 | AM35: 2482.352698 | AN35: =(AN19+AN25-AN29)/1000 -> 2559.634106 | AO35: 2637.070963 | AP35: 2715.219479 | AQ35: 2795.275511 | AR35: 2877.553411 | AS35: 2960.718596 | AT35: 3043.850957 | AU35: 3126.706521 | AV35: 3209.254949 | AW35: 3291.509631 | AX35: 3373.490377 | AY35: 4208.030667 | AZ35: 5016.88344 | BA35: 5557.456098 | BB35: 5874.208282 | BC35: 6074.057557 | BD35: 6209.441581 | BE35: 6307.896627 | BF35: 6384.545557 | BG35: 6447.922094 | BH35: 6503.136213 | BI35: NRd
B36: Nośność moment | C36: MRd=Mc+Msc+Mst | F36: kNm | G36: =(G32+G33+G34)/1000000 -> 0 | H36: -101.9680758 | I36: -56.69126648 | J36: 111.9635994 | K36: 117.8127502 | L36: 126.5281266 | M36: 108.6017304 | N36: 112.4174961 | O36: 139.8516569 | P36: 162.9355037 | Q36: 182.3697822 | R36: 200.1197133 | S36: 216.4655783 | T36: 231.4569367 | U36: 244.9842581 | V36: 257.1031114 | W36: 268.1391857 | X36: 278.4016647 | Y36: 288.0618898 | Z36: 297.1964583 | AA36: 305.8374593 | AB36: 313.9980546 | AC36: 321.6834102 | AD36: 328.8952541 | AE36: 335.6338221 | AF36: 341.8987135 | AG36: 347.6892793 | AH36: 353.0047993 | AI36: 357.8445606 | AJ36: 362.2078823 | AK36: 366.0940817 | AL36: 369.5022769 | AM36: 372.4305032 | AN36: 374.8718227 | AO36: 376.7978397 | AP36: 378.103741 | AQ36: 378.5637781 | AR36: 378.1187706 | AS36: 377.0211584 | AT36: 375.4450209 | AU36: 373.4366272 | AV36: 371.0018523 | AW36: 368.138291 | AX36: 364.8423115 | AY36: 304.7975348 | AZ36: 198.9365759 | BA36: 121.0834441 | BB36: 79.93091728 | BC36: 57.95491908 | BD36: 46.4001337 | BE36: 40.57307432 | BF36: 37.83654907 | BG36: 36.6629927 | BH36: =(BH32+BH33+BH34)/1000000 -> 36.10723253 | BI36: MRd
I37: Znaczniki | L37: Zamknięcie wykresu | O37: 10% FcA | S37: Min M
I38: =Kalkulator!E53 -> 1500 | J38: =Kalkulator!I53 -> -500 | L38: 0 | M38: =BH35 -> 6503.136213 | O38: =BH36 -> 36.10723253 | P38: =(O38+Q38)/2 -> 207.3355053 | Q38: =MAX(G36:BH36) -> 378.5637781 | S38: 0 | T38: =(S38+U38)/2 -> 65.03136213 | U38: =MIN(20,0.05*h)/1000*U39 -> 130.0627243
I39: =Kalkulator!F53 -> 320 | J39: =Kalkulator!J53 -> 50 | L39: 0 | M39: =BH36 -> 36.10723253 | O39: =0.1*F_cA/1000 -> 562.5 | P39: =O39 -> 562.5 | Q39: =O39 -> 562.5 | S39: 0 | T39: =(S39+U39)/2 -> 3251.568106 | U39: =M38 -> 6503.136213
H40: 0 | I40: 1 | J40: 2
E41: Przyrost N | F41: ΔN = | G41: Ni+1-Ni | H41: =I35-H35 -> -360.34777 | I41: 879.0342697 | J41: 20.18296205 | K41: 37.90276886 | L41: -100.5043989 | M41: 17.08808703 | N41: 144.6077323 | O41: 129.4226677 | P41: 122.8461327 | Q41: 113.0540254 | R41: 105.7753313 | S41: 99.41459219 | T41: 92.9114844 | U41: 87.00503989 | V41: 83.03799477 | W41: 80.86537136 | X41: 79.71821348 | Y41: 79.06725442 | Z41: 78.65679443 | AA41: 78.37180405 | AB41: 78.15880828 | AC41: 77.99111309 | AD41: 77.85424652 | AE41: 77.73969825 | AF41: 77.64208246 | AG41: 77.55777272 | AH41: 77.48421032 | AI41: 77.41956438 | AJ41: 77.36269707 | AK41: 77.31384418 | AL41: 77.27812923 | AM41: 77.28140819 | AN41: =AO35-AN35 -> 77.43685651 | AO41: 78.14851691 | AP41: 80.05603135 | AQ41: 82.27790017 | AR41: 83.16518459 | AS41: 83.13236134 | AT41: 82.85556459 | AU41: 82.54842767 | AV41: 82.25468173 | AW41: 81.98074573 | AX41: 834.5402909 | AY41: 808.8527721 | AZ41: 540.5726586 | BA41: 316.7521839 | BB41: 199.8492752 | BC41: 135.3840236 | BD41: 98.45504596 | BE41: 76.6489301 | BF41: 63.37653732 | BG41: 55.21411861
E42: Przyrost M | F42: ΔM = | G42: Mi+1-Mi | H42: =I36-H36 -> 45.27680934 | I42: 168.6548659 | J42: 5.849150809 | K42: 8.715376394 | L42: -17.92639621 | M42: 3.815765721 | N42: 27.43416078 | O42: 23.08384679 | P42: 19.43427855 | Q42: 17.74993105 | R42: 16.34586504 | S42: 14.99135841 | T42: 13.52732136 | U42: 12.11885331 | V42: 11.03607435 | W42: 10.26247899 | X42: 9.660225053 | Y42: 9.13456855 | Z42: 8.641000927 | AA42: 8.160595393 | AB42: 7.685355508 | AC42: 7.211843967 | AD42: 6.738567999 | AE42: 6.264891427 | AF42: 5.790565764 | AG42: 5.315519951 | AH42: 4.839761378 | AI42: 4.36332169 | AJ42: 3.886199403 | AK42: 3.408195162 | AL42: 2.928226351 | AM42: 2.441319462 | AN42: =AO36-AN36 -> 1.926016946 | AO42: 1.305901298 | AP42: 0.460037102 | AQ42: -0.445007457 | AR42: -1.097612159 | AS42: -1.57613756 | AT42: -2.008393689 | AU42: -2.434774862 | AV42: -2.863561375 | AW42: -3.295979472 | AX42: -60.04477666 | AY42: -105.8609589 | AZ42: -77.85313177 | BA42: -41.15252687 | BB42: -21.9759982 | BC42: -11.55478538 | BD42: -5.827059381 | BE42: -2.736525248 | BF42: -1.173556371 | BG42: -0.5557601689

Sheet Komentarze
B1: Komentarze:
B3: Do wydania angielskiego RCC12 (1999)
B4: All advice or information from the British Cement Association and/or Reinforced Concrete Council is intended for those who will evaluate the significance and limitations of its contents and take responsibility for its use and application. No liability (including that for negligence) for any loss resulting from such advice or information is accepted by the BCA, RCC or their subcontractors, suppliers or advisors. Users should note that all BCA software and publications are subject to revision from time to time and should therefore ensure that they are in possession of the latest version. This spreadsheet should be used in compliance with the accompanying publication 'Spreadsheets for concrete design to BS 8110 & EC2' available from British Cement Association, Telford Avenue, Crowthorne, Berkshire RG45 6YS.
B13: Do wydania polskiego CHP-Ż01 (2017)
B14: Wydanie polskie NIE jest tłumaczeniem wydania angielskiego, lecz oryginalnym kalkulatorem, w którym wykorzystano jedynie strukturę wydania angielskiego. Arkusz jest zaimplementowany dla nieliniowego modelu betonu opisanego w normie Eurokod2 (wydanie polskie PN-EN 1992-1) , a także dla modelu stali ze wzmocnieniem plastycznym. Teorię zaimplementowaną w arkuszu opublikowana w artykule: http://chodor-projekt.net/encyclopedia/nowy-algorytm-projektowania-zelbetu/
B22: Status arkusza
B23: Wersja publiczna (free)
B25: Historia rewizji Kalkulator żelbetu M-N
B27: Data | C27: Wersja | D27: Zdarzenie
B28: =DATE(99,8,3) -> 1999-08-03 | C28: RCC12 v1.0 | D28: First public release. Includes b version comments
B29: =DATE(17,6,25) -> 1917-06-25 | C29: LCH-Ż01, v1.0 | D29: Publiczne wydanie kalkulatora żelbetu,wersja Chodor-Projekt: wg EN 1992 oraz stal ze wzmocnieniem
B30: =DATE(18,3,30) -> 1918-03-30 | C30: LCH-Ż01, v1.2 | D30: Rewizja arkusza - wprowadzon drobne proprawki edycyjne i stylistyczne. Dodano kilka warunków konstrukcyjnych

Sheet Robol (hidden)
B3: ="Wykres interakcji M-N dla przekroju "&FIXED(Kalkulator!C14,0)&" x "&FIXED(Kalkulator!C15,0)&" z betonu C"&FIXED(Kalkulator!C10,0)&G4 -> Wykres interakcji M-N dla przekroju 450 x 500 z betonu C35
B5: Rysunek przekroju
B6: wsp. kształtu | D6: =MAX(1,Kalkulator!C15/Kalkulator!C14) -> 1.111111111 | E6: =MIN(1,Kalkulator!C15/Kalkulator!C14) -> 1 | G6: odstęp | H6: =(L7-C7)/(Kalkulator!D19-1) -> 82 | I6: =(L7-C7)/(Kalkulator!D20-1) -> 410
B7: =B10+15 -> 45 | C7: =B7 -> 45 | D7: =MIN($L7,C7+$H6) -> 127 | E7: 209 | F7: 291 | G7: 373 | H7: 455 | I7: 455 | J7: 455 | K7: 455 | L7: =D10-15 -> 455 | M7: =L7 -> 455 | N7: =MAX($V7,M7-$I6) -> 45 | O7: 45 | P7: 45 | Q7: 45 | R7: 45 | S7: 45 | T7: 45 | U7: 45 | V7: =B7 -> 45
B8: =B11+15 -> 45 | C8: =C11-15 -> 405 | D8: =C8 -> 405 | E8: 405 | F8: 405 | G8: 405 | H8: 405 | I8: 405 | J8: 405 | K8: 405 | L8: =C8 -> 405 | M8: =B8 -> 45 | N8: =M8 -> 45 | O8: 45 | P8: 45 | Q8: 45 | R8: 45 | S8: 45 | T8: 45 | U8: 45 | V8: =B8 -> 45
B10: =c_r -> 30 | C10: =B10 -> 30 | D10: =D12-Kalkulator!F16 -> 470 | E10: =D10 -> 470 | F10: =B10 -> 30
B11: =Kalkulator!F15 -> 30 | C11: =C13-Kalkulator!F14 -> 420 | D11: =C11 -> 420 | E11: =F11 -> 30 | F11: =B11 -> 30
B12: 0 | C12: 0 | D12: =b -> 500 | E12: =b -> 500 | F12: 0
B13: 0 | C13: =h -> 450 | D13: =h -> 450 | E13: 0 | F13: 0
B15: Element
B16: płyta
B17: belka
B18: ściana
B19: słup
B20: 4
